bitfinex/quotes_BTCUSD_20220201
["timestamp","ask_amount","ask_price","bid_price","bid_amount"]
[1643684741354,0.065054,38432.0,38430.0,0.115055]
[1643684743657,0.06496336,38432.0,38430.0,0.115055]
[1643684744906,0.06496336,38432.0,38430.0,0.065055]
[1643684746208,0.06496336,38432.0,38430.0,0.13011362]
[1643684750859,0.26365223,38435.0,38430.0,0.065059]
[1643684751157,0.23077898,38438.0,38432.0,0.09241139]
[1643684752009,0.00139572,38438.0,38432.0,0.09241139]
[1643684752211,0.46055303,38440.0,38432.0,0.39782969]
[1643684752516,0.00141415,38438.0,38433.0,0.06624686]
[1643684752711,0.00141415,38438.0,38435.0,0.23712564]
[1643684753811,0.22803313,38441.0,38435.0,0.30217564]
[1643684754012,0.22803313,38441.0,38435.0,0.30217864]
[1643684754412,0.22803313,38441.0,38435.0,0.065053]
[1643684755166,0.24893477,38441.0,38435.0,0.065053]
[1643684756155,0.00147782,38440.0,38435.0,0.065053]
[1643684756555,0.00147782,38440.0,38435.0,0.130103]
[1643684756755,0.00147782,38440.0,38436.0,0.065051]
[1643684756956,0.02090164,38441.0,38438.0,0.22782197]
[1643684757157,0.01590164,38441.0,38438.0,0.22782197]
[1643684757356,0.00147783,38439.0,38438.0,0.22782197]
[1643684757557,0.00147783,38439.0,38438.0,0.29286797]
[1643684757958,0.00147783,38439.0,38438.0,0.60815095]
[1643684758158,0.00147783,38439.0,38438.0,0.80261636]
[1643684758357,0.0209954,38445.0,38441.0,0.05]
[1643684758559,0.0209954,38445.0,38438.0,0.98734138]
[1643684758560,0.0209954,38445.0,38442.0,0.0519]
[1643684759313,0.25592055,38446.0,38442.0,0.0519]
[1643684759513,0.3816,38447.0,38442.0,0.0519]
[1643684759712,0.21657144,38448.0,38442.0,0.0519]
[1643684759912,0.00139668,38445.0,38442.0,0.0519]
[1643684760712,0.23067243,38445.0,38442.0,0.0519]
[1643684761011,0.07649818,38446.0,38442.0,0.0519]
[1643684761213,0.21657144,38448.0,38442.0,0.0519]
[1643684761214,0.00125017,38445.0,38442.0,0.0519]
[1643684763060,0.00125017,38445.0,38440.0,0.15525871]
[1643684763061,0.00125017,38445.0,38440.0,0.065043]
[1643684763259,0.21657144,38447.0,38435.0,0.01042]
[1643684763459,0.00126841,38445.0,38436.0,0.065051]
[1643684764059,0.29993681,38443.0,38436.0,0.14742475]
[1643684764260,0.00126841,38445.0,38436.0,0.14742475]
[1643684764461,0.21657144,38445.0,38436.0,0.14742475]
[1643684764659,0.21657144,38447.0,38436.0,0.14742475]
[1643684764859,0.00141498,38441.0,38436.0,0.14742475]
[1643684765060,0.00141498,38441.0,38436.0,0.065051]
[1643684765559,0.24467684,38445.0,38436.0,0.065051]
[1643684765760,0.06504721,38447.0,38436.0,0.065051]
[1643684765961,0.00141499,38440.0,38436.0,0.065051]
[1643684766159,0.00141499,38440.0,38439.0,0.09751117]
[1643684766409,0.00141499,38440.0,38439.0,0.16255517]
[1643684766810,0.00141499,38440.0,38439.0,0.43132022]
[1643684767212,0.23204032,38448.0,38439.0,0.43132022]
[1643684767412,0.00141087,38441.0,38439.0,0.16255517]
[1643684768017,0.00141087,38441.0,38440.0,0.350008]
[1643684768212,0.02038053,38445.0,38439.0,0.065044]
[1643684768413,0.00126602,38442.0,38439.0,0.065044]
[1643684769213,0.00126602,38442.0,38439.0,0.14617042]
[1643684769413,0.02038053,38445.0,38439.0,0.14617042]
[1643684769614,0.00126601,38442.0,38439.0,0.14617042]
[1643684770171,0.00126601,38442.0,38439.0,0.065044]
[1643684770964,0.00126694,38442.0,38439.0,0.065044]
[1643684771766,0.23204032,38448.0,38439.0,0.065044]
[1643684771967,0.0012834,38442.0,38439.0,0.065044]
[1643684772566,0.0012834,38442.0,38440.0,0.19637723]
[1643684772767,0.0012834,38442.0,38441.0,0.465041]
[1643684772967,0.0012834,38442.0,38441.0,0.61547621]
[1643684773366,0.0012834,38443.0,38441.0,0.61547621]
[1643684773567,0.0012834,38443.0,38442.0,0.29806871]
[1643684774109,0.03831603,38447.0,38442.0,0.29806871]
[1643684774310,0.02009171,38447.0,38443.0,0.065039]
[1643684774512,0.00128317,38444.0,38443.0,0.065039]
[1643684775413,0.02009171,38447.0,38443.0,0.065039]
[1643684775611,0.0206008,38449.0,38443.0,0.065039]
[1643684775815,0.00141153,38445.0,38443.0,0.065039]
[1643684776613,0.0206008,38449.0,38443.0,0.065039]
[1643684777013,0.00141152,38446.0,38443.0,0.065039]
[1643684777854,0.001,38449.0,38443.0,0.065039]
[1643684777855,0.001,38449.0,38444.0,0.08373515]
[1643684778056,0.00141156,38446.0,38445.0,0.065038]
[1643684778255,0.00134829,38446.0,38445.0,0.065038]
[1643684779157,0.001,38449.0,38445.0,0.065038]
[1643684780059,0.001,38449.0,38442.0,0.36310671]
[1643684780257,0.001,38449.0,38443.0,0.07602781]
[1643684780661,0.001,38449.0,38442.0,0.130076]
[1643684780662,0.001,38449.0,38440.0,0.19154685]
[1643684781069,0.001,38449.0,38440.0,0.1]
[1643684781261,0.22506454,38446.0,38440.0,0.1]
[1643684781515,0.22506454,38446.0,38437.0,0.065048]
[1643684781711,0.09014407,38445.0,38437.0,0.065048]
[1643684782110,0.22506454,38446.0,38437.0,0.25652295]
[1643684782510,0.22506454,38446.0,38437.0,0.53850963]
[1643684782712,0.22506454,38446.0,38437.0,0.34703468]
[1643684783112,0.00146598,38443.0,38437.0,0.609421]
[1643684783313,0.00146598,38443.0,38437.0,0.544373]
[1643684783512,0.00146598,38443.0,38439.0,0.065045]
[1643684783715,0.00146598,38443.0,38440.0,0.350008]
[1643684783913,0.22506454,38446.0,38439.0,0.065045]
[1643684784114,0.00146599,38443.0,38439.0,0.065045]
[1643684785161,0.22506454,38446.0,38439.0,0.065045]
[1643684785357,0.00146599,38443.0,38439.0,0.065045]
[1643684786260,0.22506454,38446.0,38439.0,0.065045]
[1643684786659,0.00146633,38443.0,38439.0,0.065045]
[1643684787358,0.00146633,38443.0,38440.0,0.350008]
[1643684787558,0.22506454,38446.0,38439.0,0.065045]
[1643684787758,0.00140351,38443.0,38439.0,0.065045]
[1643684787959,0.00140351,38443.0,38440.0,0.350008]
[1643684788762,0.22506454,38446.0,38440.0,0.350008]
[1643684789016,0.0014035,38443.0,38439.0,0.065045]
[1643684789215,0.0014035,38443.0,38440.0,0.350008]
[1643684789618,0.0014035,38443.0,38441.0,0.065042]
[1643684790019,0.22506454,38446.0,38438.0,0.065044]
[1643684790220,0.0014035,38443.0,38438.0,0.065044]
[1643684790420,0.0014035,38443.0,38439.0,0.350008]
[1643684791220,0.22506454,38446.0,38439.0,0.350008]
[1643684791424,0.00141765,38443.0,38439.0,0.065045]
[1643684792225,0.00141765,38443.0,38440.0,0.350008]
[1643684792420,0.22506454,38446.0,38438.0,0.065044]
[1643684792657,0.00141765,38443.0,38438.0,0.065044]
[1643684792858,0.00141765,38443.0,38439.0,0.350008]
[1643684793457,0.22506454,38446.0,38440.0,0.065044]
[1643684793857,0.00141765,38443.0,38440.0,0.065044]
[1643684794759,0.22506454,38446.0,38440.0,0.065044]
[1643684795063,0.00141446,38443.0,38440.0,0.065044]
[1643684796059,0.24310019,38446.0,38440.0,0.065044]
[1643684796259,0.00141446,38443.0,38440.0,0.065044]
[1643684797207,0.24310019,38446.0,38440.0,0.065044]
[1643684797407,0.00141446,38443.0,38440.0,0.065044]
[1643684798308,0.22506454,38446.0,38440.0,0.065044]
[1643684798708,0.00141517,38443.0,38440.0,0.065044]
[1643684799008,0.00141517,38443.0,38438.0,0.180091]
[1643684799709,0.22506454,38446.0,38438.0,0.130091]
[1643684801159,0.00141596,38444.0,38438.0,0.130091]
[1643684801964,0.24598869,38446.0,38438.0,0.130091]
[1643684802162,0.00133772,38443.0,38438.0,0.130091]
[1643684803162,0.24598869,38446.0,38438.0,0.130091]
[1643684803361,0.00133773,38442.0,38438.0,0.130091]
[1643684804410,0.22506454,38446.0,38438.0,0.065047]
[1643684804614,0.00133774,38442.0,38438.0,0.065047]
[1643684805612,0.22506454,38446.0,38438.0,0.065047]
[1643684805812,0.0012562,38442.0,38438.0,0.065047]
[1643684806712,0.22506454,38446.0,38438.0,0.065047]
[1643684806912,0.00126872,38442.0,38438.0,0.065047]
[1643684808065,0.246308,38446.0,38438.0,0.065047]
[1643684808265,0.00126872,38442.0,38438.0,0.065047]
[1643684809165,0.246308,38446.0,38438.0,0.065047]
[1643684809365,0.00128706,38442.0,38438.0,0.065047]
[1643684810366,0.22506454,38446.0,38438.0,0.065047]
[1643684810566,0.00129022,38442.0,38438.0,0.065047]
[1643684811509,0.22203622,38440.0,38438.0,0.065047]
[1643684813510,0.0012861,38441.0,38438.0,0.065047]
[1643684813914,0.0218593,38444.0,38438.0,0.065047]
[1643684814311,0.00128472,38441.0,38438.0,0.065047]
[1643684814512,0.00128472,38441.0,38438.0,0.130091]
[1643684815175,0.0218593,38444.0,38438.0,0.130091]
[1643684815376,0.00128472,38441.0,38438.0,0.130091]
[1643684816376,0.31231742,38445.0,38438.0,0.130091]
[1643684816574,0.31231742,38445.0,38440.0,0.065045]
[1643684816775,0.00128565,38441.0,38440.0,0.065045]
[1643684817681,0.31231742,38445.0,38440.0,0.065045]
[1643684817976,0.00128602,38442.0,38440.0,0.065045]
[1643684818775,0.31231742,38445.0,38440.0,0.065045]
[1643684819212,0.00128601,38443.0,38440.0,0.065045]
[1643684820012,0.31231742,38445.0,38440.0,0.065045]
[1643684820217,0.00128579,38443.0,38440.0,0.065045]
[1643684821416,0.00128569,38443.0,38440.0,0.065045]
[1643684821814,0.00128569,38443.0,38438.0,0.130091]
[1643684822016,0.00128569,38443.0,38438.0,0.065047]
[1643684822417,0.31231742,38445.0,38438.0,0.065047]
[1643684822671,0.00128571,38442.0,38438.0,0.065047]
[1643684822869,0.00128571,38442.0,38438.0,0.28161844]
[1643684823264,0.00128571,38442.0,38438.0,0.065047]
[1643684823664,0.31231742,38445.0,38438.0,0.065047]
[1643684823866,0.00128576,38442.0,38438.0,0.130091]
[1643684824666,0.00128576,38442.0,38438.0,0.110091]
[1643684824865,0.31231742,38445.0,38438.0,0.110091]
[1643684825067,0.00128708,38442.0,38440.0,0.065044]
[1643684825964,0.33083697,38445.0,38440.0,0.065044]
[1643684826410,0.00128707,38443.0,38440.0,0.065044]
[1643684827211,0.33083697,38445.0,38440.0,0.065044]
[1643684827410,0.00128705,38443.0,38440.0,0.065044]
[1643684828510,0.31231742,38445.0,38440.0,0.065044]
[1643684828709,0.00128561,38443.0,38440.0,0.065044]
[1643684829711,0.31231742,38445.0,38440.0,0.065044]
[1643684829912,0.00128561,38443.0,38440.0,0.065044]
[1643684830761,0.31231742,38445.0,38437.0,0.25975821]
[1643684831060,0.00128561,38443.0,38438.0,0.065047]
[1643684831962,0.01971953,38446.0,38439.0,0.2807358]
[1643684832261,0.01971953,38446.0,38439.0,0.4108118]
[1643684832460,0.01971953,38446.0,38439.0,0.195121]
[1643684832461,0.00128579,38442.0,38439.0,0.195121]
[1643684832660,0.00128579,38442.0,38440.0,0.350008]
[1643684833065,0.00128579,38442.0,38441.0,0.065043]
[1643684833264,0.11766833,38446.0,38441.0,0.065043]
[1643684833462,0.00128578,38443.0,38438.0,0.1]
[1643684833662,0.00128578,38443.0,38438.0,0.15]
[1643684834120,0.00128578,38443.0,38439.0,0.19344876]
[1643684834322,0.22078325,38442.0,38439.0,0.25849376]
[1643684834721,0.22206904,38442.0,38439.0,0.065045]
[1643684835729,0.22078325,38442.0,38439.0,0.065045]
[1643684835927,0.22206901,38442.0,38439.0,0.25551667]
[1643684836324,0.00128576,38442.0,38439.0,0.25551667]
[1643684836925,0.01925994,38445.0,38439.0,0.25551667]
[1643684837126,0.00128576,38442.0,38439.0,0.25551667]
[1643684837962,0.26534833,38446.0,38439.0,0.130091]
[1643684838366,0.00128576,38442.0,38439.0,0.3227915]
[1643684839263,0.26534833,38446.0,38439.0,0.3227915]
[1643684839564,0.00128577,38442.0,38439.0,0.3227915]
[1643684839967,0.00128577,38442.0,38439.0,0.130091]
[1643684840467,0.26534833,38446.0,38439.0,0.130091]
[1643684840666,0.00128577,38442.0,38439.0,0.130091]
[1643684842927,0.26534833,38446.0,38439.0,0.130091]
[1643684843128,0.00128577,38442.0,38439.0,0.41734129]
[1643684843533,0.00128577,38442.0,38440.0,0.065044]
[1643684843932,0.02138336,38446.0,38440.0,0.065044]
[1643684844329,0.00128576,38443.0,38440.0,0.065044]
[1643684844530,0.00114402,38443.0,38440.0,0.060044]
[1643684845166,0.02138336,38446.0,38440.0,0.060044]
[1643684845361,0.02138336,38446.0,38441.0,0.065044]
[1643684845760,0.49865332,38448.0,38441.0,0.065044]
[1643684846861,0.00069358,38446.0,38441.0,0.065044]
[1643684847662,0.29571513,38448.0,38441.0,0.065044]
[1643684847863,0.00069358,38445.0,38441.0,0.065044]
[1643684848917,0.32941427,38449.0,38441.0,0.130087]
[1643684849117,0.00138645,38445.0,38441.0,0.065044]
[1643684850121,0.0218888,38449.0,38441.0,0.065044]
[1643684850320,0.00145227,38445.0,38442.0,0.065041]
[1643684850521,0.00145227,38445.0,38441.0,0.065044]
[1643684851326,0.0218888,38449.0,38441.0,0.195129]
[1643684851522,0.00145227,38445.0,38441.0,0.130085]
[1643684851922,0.00145227,38445.0,38441.0,0.260165]
[1643684852523,0.001,38449.0,38443.0,0.065042]
[1643684852762,0.20769437,38449.0,38444.0,0.065044]
[1643684853968,0.00136548,38448.0,38444.0,0.065044]
[1643684854164,0.00136548,38448.0,38444.0,0.064014]
[1643684854466,0.00136548,38448.0,38444.0,0.059144]
[1643684854866,0.001,38449.0,38444.0,0.059144]
[1643684855067,0.001,38449.0,38441.0,0.195132]
[1643684855068,0.00136548,38448.0,38441.0,0.195132]
[1643684855266,0.00136548,38448.0,38441.0,0.180088]
[1643684855667,0.00136548,38448.0,38441.0,0.178708]
[1643684856071,0.001,38449.0,38441.0,0.178708]
[1643684856270,0.00136548,38446.0,38441.0,0.178708]
[1643684856516,0.00130548,38446.0,38441.0,0.178708]
[1643684856915,0.30174471,38446.0,38441.0,0.178708]
[1643684857114,0.30174471,38446.0,38441.0,0.05]
[1643684857314,0.30043923,38446.0,38441.0,0.05]
[1643684857814,0.30043923,38446.0,38438.0,0.18950359]
[1643684858214,0.30043923,38446.0,38438.0,0.31959859]
[1643684858615,0.30043923,38446.0,38438.0,0.25455159]
[1643684860014,0.01964302,38447.0,38441.0,0.065043]
[1643684860273,0.01964302,38447.0,38441.0,0.115043]
[1643684861275,0.00155021,38446.0,38441.0,0.115043]
[1643684861474,0.00155021,38446.0,38442.0,0.065043]
[1643684862275,0.2313013,38448.0,38446.0,0.00155021]
[1643684862476,0.350008,38447.0,38446.0,0.00155021]
[1643684862874,0.2313013,38448.0,38446.0,0.00155021]
[1643684863074,0.350008,38447.0,38446.0,0.00155021]
[1643684863914,0.2313013,38448.0,38446.0,0.00155021]
[1643684864114,0.350008,38447.0,38446.0,0.00155021]
[1643684866923,0.45012688,38447.0,38446.0,0.00155021]
[1643684867967,0.350008,38447.0,38446.0,0.00155021]
[1643684870667,0.2313013,38448.0,38446.0,0.00155021]
[1643684874220,0.29634819,38448.0,38446.0,0.00155021]
[1643684875973,0.350008,38447.0,38446.0,0.00155021]
[1643684878076,0.29789921,38448.0,38446.0,0.00155021]
[1643684878378,0.23285232,38448.0,38446.0,0.00155021]
[1643684878776,0.350008,38447.0,38446.0,0.00155021]
[1643684880227,0.2313013,38448.0,38446.0,0.00155021]
[1643684880428,0.23285232,38448.0,38446.0,0.00155021]
[1643684881429,0.2313013,38448.0,38446.0,0.00155021]
[1643684887525,0.350008,38447.0,38446.0,0.00155021]
[1643684895918,0.2313013,38448.0,38446.0,0.00155021]
[1643684896318,0.23285232,38448.0,38446.0,0.00155021]
[1643684897220,0.2313013,38448.0,38446.0,0.00155021]
[1643684899066,0.350008,38447.0,38446.0,0.00155021]
[1643684899666,1.90454979,38446.0,38440.0,0.25463271]
[1643684899869,1.90454979,38446.0,38441.0,0.05]
[1643684900069,1.90454979,38446.0,38441.0,0.115045]
[1643684900270,1.90454979,38446.0,38441.0,0.115043]
[1643684900967,0.00155107,38445.0,38441.0,0.115043]
[1643684901166,0.00155107,38445.0,38442.0,0.065043]
[1643684901817,1.90454979,38446.0,38442.0,0.065043]
[1643684902016,0.350008,38445.0,38442.0,0.065043]
[1643684902216,0.00155107,38445.0,38442.0,0.065043]
[1643684903217,1.90454979,38446.0,38442.0,0.065043]
[1643684903418,0.00155107,38445.0,38442.0,0.065043]
[1643684904220,1.90454979,38446.0,38442.0,0.065043]
[1643684904620,0.00155107,38445.0,38442.0,0.065043]
[1643684905565,1.90454979,38446.0,38442.0,0.065043]
[1643684905766,0.00155107,38445.0,38442.0,0.065043]
[1643684906567,0.00155107,38445.0,38440.0,0.065047]
[1643684906767,1.90454979,38446.0,38440.0,0.065047]
[1643684906971,0.00155107,38445.0,38440.0,0.065047]
[1643684907970,1.90454979,38446.0,38440.0,0.065047]
[1643684908167,2.16464036,38444.0,38440.0,0.065047]
[1643684908367,0.350008,38443.0,38440.0,0.065047]
[1643684908767,0.350008,38443.0,38441.0,0.05]
[1643684909018,0.00155107,38445.0,38441.0,0.05]
[1643684909218,1.90454979,38446.0,38441.0,0.05]
[1643684909419,0.00155105,38445.0,38441.0,0.05]
[1643684909618,0.00155105,38445.0,38441.0,0.115045]
[1643684910320,1.90454979,38446.0,38441.0,0.115045]
[1643684910624,0.00155108,38445.0,38441.0,0.115045]
[1643684911623,1.90454979,38446.0,38441.0,0.115045]
[1643684911822,0.00155108,38445.0,38441.0,0.115045]
[1643684912677,1.90454979,38446.0,38441.0,0.115045]
[1643684913071,0.00155108,38445.0,38441.0,0.115045]
[1643684913276,0.00155108,38445.0,38441.0,0.05]
[1643684913676,0.00155108,38445.0,38439.0,0.115048]
[1643684913875,0.2313013,38448.0,38439.0,0.065048]
[1643684914375,0.00155108,38445.0,38439.0,0.065048]
[1643684915376,0.29634916,38448.0,38439.0,0.065048]
[1643684915677,0.00155105,38445.0,38439.0,0.065048]
[1643684916419,0.29634916,38448.0,38439.0,0.065048]
[1643684916620,0.00139126,38445.0,38439.0,0.065048]
[1643684917623,0.06504752,38447.0,38439.0,0.065048]
[1643684917822,0.00139126,38445.0,38439.0,0.065048]
[1643684918222,0.00139126,38445.0,38439.0,0.25746747]
[1643684918626,0.00139126,38445.0,38439.0,0.065048]
[1643684918824,0.06504752,38447.0,38439.0,0.065048]
[1643684919025,0.00139126,38445.0,38439.0,0.065048]
[1643684919924,0.06504752,38447.0,38439.0,0.065048]
[1643684920177,0.00155105,38445.0,38439.0,0.065048]
[1643684920572,0.00155105,38445.0,38439.0,0.25397612]
[1643684920771,0.00155105,38445.0,38441.0,0.065046]
[1643684921175,0.2313013,38448.0,38441.0,0.065046]
[1643684921370,0.00155108,38445.0,38441.0,0.065046]
[1643684922471,0.06504563,38447.0,38441.0,0.065046]
[1643684922671,0.00134526,38445.0,38441.0,0.065046]
[1643684922873,0.00134526,38445.0,38441.0,0.13009]
[1643684923074,0.00134526,38445.0,38442.0,0.065041]
[1643684923675,0.001,38449.0,38442.0,0.065041]
[1643684923934,0.00134526,38445.0,38443.0,0.24882921]
[1643684924134,0.00134526,38445.0,38443.0,0.31387121]
[1643684924834,0.001,38449.0,38443.0,0.31387121]
[1643684925033,0.00134526,38446.0,38443.0,0.31387121]
[1643684926136,0.20813635,38449.0,38442.0,0.065044]
[1643684926341,0.231732,38446.0,38442.0,0.065044]
[1643684927138,0.23038674,38446.0,38442.0,0.065044]
[1643684927339,0.29543107,38446.0,38442.0,0.065044]
[1643684927675,0.29681645,38446.0,38442.0,0.065044]
[1643684928370,0.29543107,38446.0,38442.0,0.065044]
[1643684928572,0.00138538,38446.0,38442.0,0.065044]
[1643684929571,0.001,38449.0,38442.0,0.065044]
[1643684929977,0.00138538,38446.0,38442.0,0.065044]
[1643684930774,0.06504434,38447.0,38442.0,0.065044]
[1643684931074,0.00138719,38446.0,38442.0,0.065044]
[1643684932037,0.06504434,38447.0,38442.0,0.065044]
[1643684932238,0.00138719,38446.0,38442.0,0.065044]
[1643684933239,0.06504434,38447.0,38442.0,0.065044]
[1643684933440,0.00138719,38446.0,38442.0,0.065044]
[1643684934144,0.00138719,38446.0,38442.0,0.065042]
[1643684934340,0.49406356,38449.0,38443.0,0.065042]
[1643684934541,0.49395129,38449.0,38443.0,0.065042]
[1643684934741,0.00138689,38446.0,38443.0,0.065042]
[1643684935277,0.00138689,38446.0,38445.0,0.065041]
[1643684935678,0.001,38449.0,38445.0,0.065041]
[1643684936176,0.00138689,38447.0,38445.0,0.36451923]
[1643684936883,0.001,38449.0,38445.0,0.41451923]
[1643684937080,0.001,38449.0,38447.0,0.065024]
[1643684937280,0.001,38449.0,38448.0,0.401908]
[1643684937478,0.001,38449.0,38448.0,0.61612836]
[1643684937681,0.001,38449.0,38448.0,0.71612836]
[1643684937979,0.09229787,38458.0,38448.0,0.76612836]
[1643684938179,0.32841427,38464.0,38455.0,0.1]
[1643684938378,0.38314998,38466.0,38457.0,0.1]
[1643684938379,0.17525459,38466.0,38457.0,0.1]
[1643684938583,0.38314998,38472.0,38462.0,0.8]
[1643684938784,0.01,38479.0,38460.0,0.15]
[1643684938785,0.32829171,38475.0,38474.0,0.08857642]
[1643684939036,0.01,38479.0,38478.0,0.23642828]
[1643684939232,0.01,38479.0,38478.0,0.28832828]
[1643684939436,0.01,38479.0,38478.0,0.0519]
[1643684939834,0.01,38479.0,38478.0,0.51301052]
[1643684940036,0.01,38479.0,38478.0,0.0519]
[1643684940433,0.01,38479.0,38478.0,0.61612836]
[1643684940632,0.01,38479.0,38478.0,0.451908]
[1643684940831,0.01,38479.0,38478.0,0.76612836]
[1643684941032,0.01,38479.0,38478.0,1.04451849]
[1643684941433,0.01,38479.0,38478.0,1.61077236]
[1643684941639,0.33871271,38495.0,38479.0,0.8]
[1643684941839,0.33871271,38495.0,38478.0,1.54579836]
[1643684941840,0.010421,38495.0,38482.0,0.064964]
[1643684942043,0.3794,38497.0,38493.0,0.22665735]
[1643684942044,0.70769171,38497.0,38493.0,0.22665735]
[1643684942342,0.39296756,38499.0,38489.0,0.95940093]
[1643684942343,0.33829171,38499.0,38489.0,0.95940093]
[1643684942538,0.005,38499.0,38490.0,0.21422036]
[1643684942786,0.005,38499.0,38495.0,0.4026316]
[1643684942987,0.005,38499.0,38496.0,0.8312]
[1643684943190,0.005,38499.0,38496.0,1.11036636]
[1643684943588,0.005,38499.0,38496.0,0.896146]
[1643684943787,0.005,38499.0,38497.0,0.1010459]
[1643684943989,0.005,38499.0,38498.0,0.401908]
[1643684945988,0.005,38499.0,38498.0,0.50259402]
[1643684946188,0.005,38499.0,38498.0,0.71681438]
[1643684946435,0.005,38499.0,38498.0,0.94396375]
[1643684946636,0.03733317,38504.0,38499.0,0.86493]
[1643684946837,0.001,38506.0,38503.0,0.350008]
[1643684947035,0.001,38506.0,38504.0,0.6780144]
[1643684947239,0.001,38506.0,38505.0,0.350008]
[1643684947435,0.001,38506.0,38505.0,0.401908]
[1643684948236,0.0205023,38511.0,38505.0,0.401908]
[1643684948438,0.5359,38526.0,38508.0,0.350008]
[1643684948640,0.5359,38526.0,38510.0,0.05]
[1643684948837,0.07792111,38521.0,38511.0,0.0519]
[1643684949239,0.2515705,38518.0,38511.0,0.0519]
[1643684949436,0.00632069,38513.0,38511.0,0.0519]
[1643684949635,0.00632069,38513.0,38512.0,0.350008]
[1643684949840,0.00632069,38513.0,38512.0,0.401908]
[1643684950485,0.67253332,38522.0,38513.0,0.75]
[1643684950486,0.00027124,38522.0,38513.0,0.75]
[1643684950685,0.00027124,38522.0,38517.0,0.350008]
[1643684950981,0.00027124,38522.0,38518.0,0.0519]
[1643684951181,0.00027124,38522.0,38518.0,0.13389]
[1643684951383,0.00027124,38522.0,38518.0,0.4295877]
[1643684951582,0.00027124,38522.0,38518.0,0.5444917]
[1643684951784,0.00027124,38522.0,38519.0,0.8]
[1643684951983,0.00027124,38522.0,38521.0,0.350008]
[1643684952184,0.00027124,38522.0,38521.0,2.39576913]
[1643684952390,0.00027124,38522.0,38521.0,2.18154877]
[1643684952581,7.98295113,38528.0,38526.0,0.27963908]
[1643684952784,5.41361962,38528.0,38527.0,2.09379836]
[1643684952982,0.01,38529.0,38527.0,2.09379836]
[1643684952983,7.642e-05,38529.0,38528.0,0.8]
[1643684953200,0.0003137,38550.0,38528.0,1.34287836]
[1643684953386,0.0003137,38550.0,38548.0,0.649]
[1643684953585,0.0003137,38550.0,38538.0,0.12589299]
[1643684953785,0.00031371,38558.0,38548.0,0.699]
[1643684954044,0.0151632,38562.0,38557.0,0.649]
[1643684954045,0.01047691,38562.0,38557.0,0.649]
[1643684954241,0.01047691,38562.0,38543.0,0.10010299]
[1643684954242,0.01047691,38562.0,38555.0,0.1]
[1643684954444,0.350008,38561.0,38560.0,0.649]
[1643684954642,0.05,38560.0,38546.0,0.359394]
[1643684954839,0.05,38560.0,38547.0,0.83017]
[1643684955042,0.21422036,38559.0,38550.0,0.064852]
[1643684955240,0.21422036,38559.0,38547.0,0.77827]
[1643684955241,0.25723239,38551.0,38547.0,0.77827]
[1643684956242,0.25932224,38550.0,38547.0,0.77827]
[1643684956840,0.25723239,38551.0,38547.0,0.77827]
[1643684957038,0.34321324,38551.0,38547.0,0.77827]
[1643684957784,0.0519,38555.0,38547.0,0.77827]
[1643684958186,0.3947,38567.0,38548.0,0.21422036]
[1643684958381,0.00162081,38550.0,38548.0,0.32906873]
[1643684958580,0.00648225,38556.0,38549.0,1.34245836]
[1643684958781,0.00648225,38556.0,38551.0,0.44572306]
[1643684959183,0.00648225,38556.0,38549.0,0.77823]
[1643684959784,0.00130035,38557.0,38550.0,0.20922036]
[1643684959980,0.00130035,38557.0,38551.0,0.05]
[1643684960183,0.00130035,38557.0,38552.0,0.06485]
[1643684960387,0.00130035,38557.0,38553.0,0.05]
[1643684960582,0.00130035,38557.0,38554.0,0.34389536]
[1643684960783,0.0190564,38562.0,38554.0,0.129675]
[1643684960983,0.00047691,38562.0,38554.0,0.129675]
[1643684961190,0.00047691,38562.0,38556.0,0.08809859]
[1643684961441,6.91e-06,38562.0,38558.0,0.06482142]
[1643684961642,0.01941478,38568.0,38558.0,0.06482142]
[1643684961643,8.99032067,38565.0,38561.0,0.350008]
[1643684961840,8.99032067,38565.0,38564.0,0.129637]
[1643684962037,8.99032067,38565.0,38564.0,0.907567]
[1643684962240,8.60138567,38565.0,38564.0,0.17921924]
[1643684962837,8.89532601,38565.0,38564.0,0.17921924]
[1643684963041,8.89032601,38565.0,38564.0,0.30885624]
[1643684963639,8.89032601,38565.0,38564.0,0.17921924]
[1643684964041,9.24033401,38565.0,38564.0,0.04921924]
[1643684964239,9.24033401,38565.0,38552.0,0.08569045]
[1643684964240,0.48843848,38563.0,38552.0,0.08569045]
[1643684964640,0.07907678,38559.0,38552.0,0.08569045]
[1643684964841,0.07907678,38559.0,38552.0,0.064852]
[1643684965040,0.48843848,38563.0,38552.0,0.064852]
[1643684965285,0.48843848,38563.0,38553.0,0.0519]
[1643684965487,0.48843848,38563.0,38553.0,0.3808647]
[1643684965686,0.48843848,38563.0,38553.0,0.0519]
[1643684965687,0.21422036,38562.0,38553.0,0.0519]
[1643684965883,0.350008,38561.0,38553.0,0.0519]
[1643684966083,0.08859212,38555.0,38553.0,0.0519]
[1643684966483,0.51159319,38554.0,38548.0,0.064857]
[1643684966691,0.51159319,38554.0,38542.0,0.02159562]
[1643684966692,0.0519,38553.0,38542.0,0.02159562]
[1643684966883,0.0519,38553.0,38533.0,0.129732]
[1643684966884,0.21422036,38552.0,38533.0,0.129732]
[1643684967083,0.21422036,38552.0,38534.0,0.350008]
[1643684967084,0.0519,38551.0,38534.0,0.350008]
[1643684967285,0.07833475,38535.0,38534.0,0.350008]
[1643684967484,0.07833475,38535.0,38534.0,0.06488]
[1643684967683,0.0519,38542.0,38534.0,0.350008]
[1643684967882,0.0519,38542.0,38533.0,0.350008]
[1643684968783,0.58134113,38538.0,38530.0,0.00230049]
[1643684969238,0.58134113,38538.0,38530.0,0.0011]
[1643684969440,0.58134113,38538.0,38530.0,0.06658724]
[1643684969638,0.28739178,38538.0,38530.0,0.06658724]
[1643684969938,0.09690285,38540.0,38530.0,0.06658724]
[1643684970141,0.0519,38542.0,38530.0,0.06658724]
[1643684970340,0.0519,38542.0,38531.0,0.350008]
[1643684970538,0.21422036,38541.0,38531.0,0.3499119]
[1643684970739,0.31158052,38534.0,38530.0,0.00173933]
[1643684971541,0.31158052,38534.0,38531.0,0.349289]
[1643684971739,0.26612036,38541.0,38530.0,0.0011]
[1643684971940,0.0519,38541.0,38530.0,0.0011]
[1643684972139,0.28644723,38541.0,38530.0,0.00237867]